lending/lending_fUSD_20250913
["ID","MTS","AMOUNT","RATE_DAILY","PERIOD"]
[385292431,1757752234246,-400.0,0.00031728,2]
[385292432,1757752234256,-400.0,0.00031728,2]
[385292433,1757752234266,-796.21,0.00031728,2]
[385292434,1757752234275,-400.0,0.00031728,2]
[385292435,1757752234285,-400.0,0.00031728,2]
[385292436,1757752234295,-709.85,0.00031728,2]
[385292437,1757752234305,-400.0,0.00031728,2]
[385292438,1757752234314,-400.0,0.00031728,2]
[385292439,1757752234323,-400.0,0.00031728,2]
[385292440,1757752234333,-400.0,0.00031728,2]
[385292441,1757752234343,-400.0,0.00031728,2]
[385292442,1757752234352,-801.52,0.00031728,2]
[385292443,1757752234362,-467.05,0.00031728,2]
[385292444,1757752234371,-708.8,0.00031728,2]
[385292445,1757752234381,-556.26,0.00031728,2]
[385292446,1757752234391,-849.31,0.00031728,2]
[385292447,1757752234400,-576.64,0.00031728,2]
[385292448,1757752234410,-400.0,0.00031728,2]
[385292449,1757752234421,-407.82042233,0.00031728,2]
[385292450,1757752234430,-466.14,0.00031728,2]
[385292451,1757752234440,-519.88,0.00031728,2]
[385292452,1757752234450,-400.0,0.00031728,2]
[385292453,1757752234460,-471.01,0.00031728,2]
[385292454,1757752234469,-400.34415617,0.00031728,2]
[385292455,1757752234478,-610.16,0.00031728,2]
[385292456,1757752234488,-402.08841979,0.00031728,2]
[385292457,1757752234497,-400.0,0.00031728,2]
[385292458,1757752234507,-657.35,0.00031728,2]
[385292459,1757752234516,-401.80029224,0.00031728,2]
[385292460,1757752234525,-632.61,0.00031728,2]
[385292461,1757752234535,-404.60380426,0.00031728,2]
[385292462,1757752234545,-793.03,0.00031728,2]
[385292463,1757752234554,-400.0,0.00031728,2]
[385292464,1757752234563,-400.0,0.00031728,2]
[385292465,1757752234572,-400.0,0.00031728,2]
[385292466,1757752234582,-405.31784998,0.00031728,2]
[385292467,1757752234591,-400.0,0.00031728,2]
[385292468,1757752234600,-582.33,0.00031728,2]
[385292469,1757752234610,-400.0,0.00031728,2]
[385292470,1757752234620,-400.0,0.00031728,2]
[385292471,1757752234629,-402.79981756,0.00031728,2]
[385292472,1757752234639,-400.0,0.00031728,2]
[385292473,1757752234649,-500.0,0.00031728,2]
[385292474,1757752234658,-400.0,0.00031728,2]
[385292475,1757752234668,-401.23957417,0.00031728,2]
[385292476,1757752234678,-552.5,0.00031728,2]
[385292477,1757752234687,-400.0,0.00031728,2]
[385292478,1757752234697,-400.0,0.00031728,2]
[385292479,1757752234707,-400.0,0.00031728,2]
[385292480,1757752234717,-400.0,0.00031728,2]
[385292481,1757752234726,-400.0,0.00031728,2]
[385292482,1757752234737,-401.91185475,0.00031728,2]
[385292483,1757752234746,-400.0,0.00031728,2]
[385292484,1757752234758,-400.0,0.00031728,2]
[385292485,1757752234768,-248.83476926,0.00031728,2]
[385292486,1757752234777,-400.0,0.00031728,2]
[385292487,1757752234789,-400.0,0.00031728,2]
[385292488,1757752234798,-504.11,0.00031728,2]
[385292489,1757752234808,-545.05,0.00031728,2]
[385292490,1757752234817,-188.16662396,0.00031728,2]
[385292491,1757752234826,-400.0,0.00031728,2]
[385292492,1757752234836,-595.92,0.00031728,2]
[385292493,1757752234846,-405.36902256,0.00031728,2]
[385292494,1757752234856,-400.0,0.00031728,2]
[385292495,1757752234865,-400.0,0.00031728,2]
[385292496,1757752234875,-708.85,0.00031728,2]
[385292497,1757752234884,-819.36,0.00031728,2]
[385292498,1757752234894,-530.76186958,0.00031728,2]
[385292499,1757752234903,-400.0,0.00031728,2]
[385292500,1757752234912,-400.0,0.00031728,2]
[385292501,1757752234922,-602.74,0.00031728,2]
[385292502,1757752234931,-400.0,0.00031728,2]
[385292503,1757752234940,-400.0,0.00031728,2]
[385292504,1757752234950,-400.0,0.00031728,2]
[385292505,1757752234960,-400.0,0.00031728,2]
[385292506,1757752234969,-763.85,0.00031728,2]
[385292507,1757752234979,-461.06,0.00031728,2]
[385292508,1757752234988,-400.0,0.00031728,2]
[385292509,1757752234998,-546.72,0.00031728,2]
[385292510,1757752235007,-563.68,0.00031728,2]
[385292511,1757752235019,-400.0,0.00031728,2]
[385292512,1757752235028,-400.0,0.00031728,2]
[385292513,1757752235037,-400.0,0.00031728,2]
[385292514,1757752235047,-402.3784548,0.00031728,2]
[385292515,1757752235056,-400.0,0.00031728,2]
[385292516,1757752235066,-400.0,0.00031728,2]
[385292517,1757752235075,-540.93,0.00031728,2]
[385292518,1757752235084,-400.0,0.00031728,2]
[385292519,1757752235093,-500.56,0.00031728,2]
[385292520,1757752235103,-185.40711455,0.00031728,2]
[385292521,1757752235112,-400.0,0.00031728,2]
[385292522,1757752235122,-516.75,0.00031728,2]
[385292523,1757752235131,-400.0,0.00031728,2]
[385292524,1757752235141,-621.72,0.00031728,2]
[385292525,1757752235150,-500.0,0.00031728,2]
[385292526,1757752235160,-400.0,0.00031728,2]
[385292527,1757752235169,-400.0,0.00031728,2]
[385292528,1757752235180,-478.96,0.00031728,2]
[385292529,1757752235189,-400.0,0.00031728,2]
[385292530,1757752235199,-401.49908917,0.00031728,2]
[385292531,1757752235209,-572.69,0.00031728,2]
[385292532,1757752235218,-626.39,0.00031728,2]
[385292533,1757752235228,-679.07,0.00031728,2]
[385292534,1757752235238,-400.0,0.00031728,2]
[385292535,1757752235247,-400.0,0.00031728,2]
[385292536,1757752235257,-854.52,0.00031728,2]
[385292537,1757752235266,-400.0,0.00031728,2]
[385292538,1757752235276,-788.86,0.00031728,2]
[385292539,1757752235285,-156.73011322,0.00031728,2]
[385292540,1757752235294,-400.0,0.00031728,2]
[385292541,1757752235304,-400.0,0.00031728,2]
[385292542,1757752235313,-400.0,0.00031728,2]
[385292543,1757752235323,-637.71,0.00031728,2]
[385292544,1757752235332,-400.0,0.00031728,2]
[385292545,1757752235341,-403.35129774,0.00031728,2]
[385292546,1757752235351,-403.68470241,0.00031728,2]
[385292547,1757752235360,-400.0,0.00031728,2]
[385292548,1757752235370,-600.05,0.00031728,2]
[385292549,1757752235380,-556.39,0.00031728,2]
[385292550,1757752235389,-901.2,0.00031728,2]
[385292551,1757752235408,-400.0,0.00031728,2]
[385292552,1757752235418,-1976.37,0.00031728,2]
[385292553,1757752235428,-400.0,0.00031728,2]
[385292554,1757752235438,-400.0,0.00031728,2]
[385292555,1757752235447,-400.0,0.00031728,2]
[385292556,1757752235457,-586.52,0.00031728,2]
[385292557,1757752235467,-1611.74,0.00031728,2]
[385292558,1757752235476,-581.88,0.00031728,2]
[385292559,1757752235486,-400.0,0.00031728,2]
[385292560,1757752235495,-733.74,0.00031728,2]
[385292561,1757752235504,-400.0,0.00031728,2]
[385292562,1757752235517,-1043.58,0.00031728,2]
[385292563,1757752235536,-764.31,0.00031728,2]
[385292564,1757752235545,-504.70014821,0.00031728,2]
[385292565,1757752235554,-400.0,0.00031728,2]
[385292566,1757752235563,-400.0,0.00031728,2]
[385292567,1757752235572,-474.12,0.00031728,2]
[385292568,1757752235582,-400.0,0.00031728,2]
[385292569,1757752235591,-400.0,0.00031728,2]
[385292570,1757752235600,-400.0,0.00031728,2]
[385292571,1757752235610,-761.88,0.00031728,2]
[385292572,1757752235619,-400.0,0.00031728,2]
[385292573,1757752235628,-500.0,0.00031728,2]
[385292574,1757752235637,-400.0,0.00031728,2]
[385292575,1757752235647,-410.37740088,0.00031728,2]
[385292576,1757752235656,-593.67,0.00031728,2]
[385292577,1757752235665,-400.0,0.00031728,2]
[385292578,1757752235674,-628.08,0.00031728,2]
[385292579,1757752235684,-400.0,0.00031728,2]
[385292580,1757752235693,-1144.77,0.00031728,2]
[385292581,1757752235703,-400.0,0.00031728,2]
[385292582,1757752235713,-410.12575552,0.00031728,2]
[385292583,1757752235722,-400.0,0.00031728,2]
[385292584,1757752235731,-296.8599281,0.00031728,2]
[385292585,1757752235740,-401.25827782,0.00031728,2]
[385292586,1757752235749,-400.0,0.00031728,2]
[385292587,1757752235758,-618.12,0.00031728,2]
[385292588,1757752235767,-762.05,0.00031728,2]
[385292589,1757752235776,-400.0,0.00031728,2]
[385292590,1757752235786,-686.04,0.00031728,2]
[385292591,1757752235797,-402.12882402,0.00031728,2]
[385292592,1757752235806,-781.43,0.00031728,2]
[385292593,1757752235815,-400.0,0.00031728,2]
[385292594,1757752235825,-500.0,0.00031728,2]
[385292595,1757752235834,-400.0,0.00031728,2]
[385292596,1757752235843,-400.0,0.00031728,2]
[385292597,1757752235852,-1967.75,0.00031728,2]
[385292598,1757752235869,-477.92,0.00031728,2]
[385292599,1757752235879,-1183.38,0.00031728,2]
[385292600,1757752235888,-400.0,0.00031729,2]
[385292601,1757752235898,-400.0,0.00031729,2]
[385292602,1757752235907,-400.0,0.00031729,2]
[385292603,1757752235916,-404.72977407,0.00031729,2]
[385292604,1757752235925,-400.0,0.00031729,2]
[385292605,1757752235935,-400.0,0.00031729,2]
[385292606,1757752235943,-400.0,0.00031729,2]
[385292607,1757752235953,-439.34,0.00031729,2]
[385292608,1757752235963,-400.0,0.00031729,2]
[385292609,1757752235973,-400.0,0.00031729,2]
[385292610,1757752235982,-400.0,0.00031729,2]
[385292611,1757752235993,-400.0,0.00031729,2]
[385292612,1757752236002,-400.0,0.00031729,2]
[385292613,1757752236011,-400.0,0.00031729,2]
[385292614,1757752236021,-400.0,0.00031729,2]
[385292615,1757752236031,-400.0,0.00031729,2]
[385292616,1757752236040,-400.0,0.00031729,2]
[385292617,1757752236050,-400.0,0.00031729,2]
[385292618,1757752236059,-400.0,0.00031729,2]
[385292619,1757752236068,-400.0,0.00031729,2]
[385292620,1757752236077,-400.0,0.00031729,2]
[385292621,1757752236087,-400.0,0.00031729,2]
[385292622,1757752236096,-400.0,0.00031729,2]
[385292623,1757752236105,-400.0,0.00031729,2]
[385292624,1757752236115,-400.0,0.00031729,2]
[385292625,1757752236124,-400.0,0.00031729,2]
[385292626,1757752236134,-400.0,0.00031729,2]
[385292627,1757752236143,-400.0,0.00031729,2]
[385292628,1757752236153,-400.0,0.00031729,2]
[385292629,1757752236162,-400.0,0.00031729,2]
[385292630,1757752236171,-400.0,0.00031729,2]
[385292631,1757752236180,-400.0,0.00031729,2]
[385292632,1757752236190,-400.0,0.00031729,2]
[385292633,1757752236199,-400.0,0.00031729,2]
[385292634,1757752236209,-400.0,0.00031729,2]
[385292635,1757752236218,-411.81,0.00031729,2]
[385292636,1757752236228,-405.81775193,0.00031729,2]
[385292637,1757752236470,-400.0,0.00031729,2]
[385292638,1757752236480,-400.0,0.00031729,2]
[385292639,1757752236490,-400.0,0.00031729,2]
[385292640,1757752236499,-400.0,0.00031729,2]
[385292641,1757752236509,-400.0,0.00031729,2]
[385292642,1757752236520,-400.0,0.00031729,2]
[385292643,1757752236536,-400.0,0.00031729,2]
[385292644,1757752236545,-400.0,0.00031729,2]
[385292645,1757752236556,-400.0,0.00031729,2]
[385292646,1757752236566,-579.03,0.00031729,2]
[385292647,1757752236575,-400.0,0.00031729,2]
[385292648,1757752236585,-400.0,0.00031729,2]
[385292649,1757752236594,-410.41,0.00031729,2]
[385292650,1757752236604,-230.34442783,0.00031729,2]
[385292651,1757752236615,-409.73875659,0.00031729,2]
[385292652,1757752236626,-400.0,0.00031729,2]
[385292653,1757752236636,-400.0,0.00031729,2]
[385292654,1757752236647,-400.0,0.00031729,2]
[385292655,1757752236659,-400.0,0.00031729,2]
[385292656,1757752236669,-400.0,0.00031729,2]
[385292657,1757752236679,-318.29360806,0.00031729,2]
[385292658,1757752236689,-444.17,0.00031729,2]
[385292659,1757752236699,-400.0,0.00031729,2]
[385292660,1757752236709,-400.0,0.00031729,2]
[385292661,1757752236718,-402.00247481,0.00031729,2]
[385292662,1757752236728,-619.64,0.00031729,2]
[385292663,1757752236738,-434.44278495,0.00031729,2]
[385292664,1757752236749,-400.0,0.00031729,2]
[385292665,1757752236759,-400.0,0.00031729,2]
[385292666,1757752236769,-400.0,0.00031729,2]
[385292667,1757752236781,-507.52326583,0.00031729,2]
[385292668,1757752236794,-400.0,0.00031729,2]
[385292669,1757752236805,-406.65991429,0.00031729,2]
[385292670,1757752236814,-400.0,0.00031729,2]
[385292671,1757752236824,-400.0,0.00031729,2]
[385292672,1757752236835,-400.0,0.00031729,2]
[385292673,1757752236845,-400.0,0.00031729,2]
[385292674,1757752236856,-400.0,0.00031729,2]
[385292675,1757752236866,-400.0,0.00031729,2]
[385292676,1757752236878,-400.0,0.00031729,2]
[385292677,1757752236887,-400.0,0.00031729,2]
[385292678,1757752236897,-400.0,0.00031729,2]
[385292679,1757752236907,-400.0,0.00031729,2]
[385292680,1757752236916,-405.69534859,0.00031729,2]
[385292681,1757752236926,-400.0,0.00031729,2]
[385292682,1757752236938,-400.0,0.00031729,2]
[385292683,1757752236948,-400.0,0.00031729,2]
[385292684,1757752236958,-400.0,0.00031729,2]
[385292685,1757752236968,-400.0,0.00031729,2]
[385292686,1757752236977,-460.32,0.00031729,2]
[385292687,1757752236987,-400.0,0.00031729,2]
[385292688,1757752236996,-400.0,0.00031729,2]
[385292689,1757752237006,-400.0,0.00031729,2]
[385292690,1757752237016,-400.0,0.00031729,2]
[385292691,1757752237026,-400.0,0.00031729,2]
[385292692,1757752237035,-400.0,0.00031729,2]
[385292693,1757752237044,-400.0,0.00031729,2]
[385292694,1757752237054,-291.12237553,0.00031729,2]
[385292695,1757752237064,-400.0,0.00031729,2]
[385292696,1757752237074,-400.0,0.00031729,2]
[385292697,1757752237083,-400.0,0.00031729,2]
[385292698,1757752237093,-402.40315663,0.00031729,2]
[385292699,1757752237102,-648.2,0.00031729,2]
[385292700,1757752237111,-495.59,0.00031729,2]
[385292701,1757752237121,-400.0,0.00031729,2]
[385292702,1757752237131,-400.0,0.00031729,2]
[385292703,1757752237140,-288.20269181,0.00031729,2]
[385292704,1757752237150,-400.0,0.00031729,2]
[385292705,1757752237159,-400.0,0.00031729,2]
[385292706,1757752237168,-400.0,0.00031729,2]
[385292707,1757752237178,-400.0,0.00031729,2]
[385292708,1757752237187,-400.0,0.00031729,2]
[385292709,1757752237197,-401.21,0.00031729,2]
[385292710,1757752237207,-400.0,0.00031729,2]
[385292711,1757752237216,-400.0,0.00031729,2]
[385292712,1757752237226,-400.0,0.00031729,2]
[385292713,1757752237235,-400.0,0.00031729,2]
[385292714,1757752237245,-400.0,0.00031729,2]
[385292715,1757752237254,-400.0,0.00031729,2]
[385292716,1757752237263,-400.0,0.00031729,2]
[385292717,1757752237273,-400.0,0.00031729,2]
[385292718,1757752237283,-400.0,0.00031729,2]
[385292719,1757752237292,-400.0,0.00031729,2]
[385292720,1757752237302,-400.0,0.00031729,2]
[385292721,1757752237312,-400.0,0.00031729,2]
[385292722,1757752237321,-400.0,0.00031729,2]
[385292723,1757752237331,-400.0,0.00031729,2]
[385292724,1757752237341,-400.0,0.00031729,2]
[385292725,1757752237351,-400.0,0.00031729,2]
[385292726,1757752237361,-313.79170989,0.00031729,2]
[385292758,1757752240259,-202.62526055,0.00030675,2]
[385292759,1757752240270,-153.50840759,0.00030675,2]
[385292760,1757752240285,-77.44333798,0.00030675,2]
[385292761,1757752240295,-441.89811034,0.00030675,2]
[385292762,1757752240305,-4427.47130019,0.000315,15]
[385292763,1757752240320,-2051.2360916,0.000315,15]
[385292770,1757752243596,-93516.52128483,0.000315,15]
[385292771,1757752243607,-409.92,0.00031718,2]
[385292772,1757752243616,-421.04,0.00031718,2]
[385292773,1757752243625,-400.0,0.00031726,2]
[385292774,1757752243635,-8438.07387359,0.00031727,2]
[385292775,1757752243645,-114715.9769085,0.00031727,2]
[385292776,1757752243655,-1115.57,0.00031728,2]
[385292777,1757752243665,-515.41,0.00031728,2]
[385292778,1757752243676,-86.20829011,0.00031729,2]
[385292779,1757752243686,-671.83,0.00031729,2]
[385292780,1757752243696,-400.0,0.00031729,2]
[385292782,1757752243707,-645.28,0.00031729,2]
[385292783,1757752243716,-400.0,0.00031729,2]
[385292784,1757752243726,-400.0,0.00031729,2]
[385292785,1757752243735,-403.73373964,0.00031729,2]
[385292786,1757752243746,-400.0,0.00031729,2]
[385292787,1757752243755,-400.0,0.00031729,2]
[385292788,1757752243765,-400.0,0.00031729,2]
[385292789,1757752243775,-430.03,0.00031729,2]
[385292790,1757752243785,-400.0,0.00031729,2]
[385292791,1757752243798,-400.0,0.00031729,2]
[385292792,1757752243808,-400.0,0.00031729,2]
[385292793,1757752243817,-400.0,0.00031729,2]
[385292794,1757752243827,-400.0,0.00031729,2]
[385292795,1757752243837,-400.0,0.00031729,2]
[385292796,1757752243847,-400.0,0.00031729,2]
[385292797,1757752243857,-400.0,0.00031729,2]
[385292798,1757752243869,-408.31872692,0.00031729,2]
[385292799,1757752243879,-2000.0,0.00031729,30]
[385292800,1757752243889,-400.0,0.00031729,2]
[385292801,1757752243899,-400.0,0.00031729,2]
[385292802,1757752243909,-355.63550553,0.00031729,2]
[385292803,1757752243919,-400.0,0.00031729,2]
[385292804,1757752243929,-400.0,0.00031729,2]
[385292805,1757752243939,-400.0,0.00031729,2]
[385292806,1757752243948,-535.52,0.00031729,2]
[385292807,1757752243958,-400.0,0.00031729,2]
[385292808,1757752243968,-833.56,0.00031729,2]
[385292809,1757752243978,-510.55,0.00031729,2]
[385292810,1757752243988,-400.0,0.00031729,2]
[385292811,1757752243997,-400.0,0.00031729,2]
[385292812,1757752244007,-400.0,0.00031729,2]
[385292813,1757752244017,-400.0,0.00031729,2]
[385292814,1757752244027,-400.0,0.00031729,2]
[385292815,1757752244038,-400.0,0.00031729,2]
[385292816,1757752244048,-400.0,0.00031729,2]
[385292817,1757752244058,-400.0,0.00031729,2]
[385292818,1757752244069,-400.0,0.00031729,2]
[385292819,1757752244080,-400.0,0.00031729,2]
[385292820,1757752244091,-400.0,0.00031729,2]
[385292821,1757752244103,-402.65852411,0.00031729,2]
[385292822,1757752244115,-400.0,0.00031729,2]
[385292823,1757752244125,-400.0,0.00031729,2]
[385292824,1757752244135,-650.68,0.00031729,2]
[385292825,1757752244144,-400.0,0.00031729,2]
[385292826,1757752244154,-400.0,0.00031729,2]
[385292827,1757752244164,-400.0,0.00031729,2]
[385292828,1757752244174,-400.0,0.00031729,2]
[385292829,1757752244184,-400.0,0.00031729,2]
[385292830,1757752244193,-400.0,0.00031729,2]
[385292831,1757752244203,-400.0,0.00031729,2]
[385292832,1757752244212,-400.0,0.00031729,2]
[385292834,1757752244222,-400.0,0.00031729,2]
[385292836,1757752244232,-400.0,0.00031729,2]
[385292838,1757752244242,-400.0,0.00031729,2]
[385292840,1757752244251,-400.0,0.00031729,2]
[385292842,1757752244261,-400.0,0.00031729,2]
[385292844,1757752244271,-669.33,0.00031729,2]
[385292846,1757752244280,-400.0,0.00031729,2]
[385292847,1757752244291,-400.0,0.00031729,2]
[385292848,1757752244301,-409.24,0.00031729,2]
[385292849,1757752244310,-400.0,0.00031729,2]
[385292850,1757752244320,-400.0,0.00031729,2]
[385292851,1757752244329,-400.0,0.00031729,2]
[385292852,1757752244339,-400.0,0.00031729,2]
[385292853,1757752244349,-400.0,0.00031729,2]
[385292854,1757752244359,-400.0,0.00031729,2]
[385292855,1757752244369,-400.0,0.00031729,2]
[385292856,1757752244379,-400.0,0.00031729,2]
[385292857,1757752244388,-400.0,0.00031729,2]
[385292858,1757752244398,-400.0,0.00031729,2]
[385292859,1757752244408,-400.0,0.00031729,2]
[385292860,1757752244417,-400.0,0.00031729,2]
[385292861,1757752244427,-400.0,0.00031729,2]
[385292862,1757752244437,-402.48512618,0.00031729,2]
[385292863,1757752244447,-400.0,0.00031729,2]
[385292864,1757752244457,-400.0,0.00031729,2]
[385292865,1757752244467,-400.0,0.00031729,2]
[385292866,1757752244476,-400.0,0.00031729,2]
[385292867,1757752244487,-400.0,0.00031729,2]
[385292868,1757752244497,-535.60692621,0.00031729,2]
[385292869,1757752244507,-610.14,0.00031729,2]
[385292870,1757752244517,-400.0,0.00031729,2]
[385292871,1757752244527,-400.0,0.00031729,2]
[385292872,1757752244537,-400.0,0.00031729,2]
[385292873,1757752244546,-400.0,0.00031729,2]
[385292874,1757752244556,-400.0,0.00031729,2]
[385292875,1757752244566,-400.0,0.00031729,2]
[385292876,1757752244575,-765.79,0.00031729,2]
[385292877,1757752244585,-400.0,0.00031729,2]
[385292878,1757752244595,-400.0,0.00031729,2]
[385292879,1757752244605,-518.87,0.00031729,2]
[385292880,1757752244615,-400.0,0.00031729,2]
[385292881,1757752244624,-400.0,0.00031729,2]
[385292882,1757752244634,-1000.0,0.00031729,2]
[385292883,1757752244644,-403.04217819,0.00031729,2]
[385292884,1757752244655,-400.0,0.00031729,2]
[385292885,1757752244665,-494.86,0.00031729,2]
[385292886,1757752244675,-400.0,0.00031729,2]
[385292887,1757752244685,-400.0,0.00031729,2]
[385292888,1757752244929,-400.0,0.00031729,2]
[385292889,1757752244938,-400.0,0.00031729,2]
[385292890,1757752244947,-400.0,0.00031729,2]
[385292891,1757752244957,-400.0,0.00031729,2]
[385292892,1757752244966,-400.0,0.00031729,2]
[385292893,1757752244976,-400.0,0.00031729,2]
[385292894,1757752244985,-696.08,0.00031729,2]
[385292895,1757752244994,-400.0,0.00031729,2]
[385292896,1757752245004,-400.0,0.00031729,2]
[385292897,1757752245013,-432.26,0.00031729,2]
[385292898,1757752245022,-757.29,0.00031729,2]
[385292899,1757752245031,-400.0,0.00031729,2]
[385292900,1757752245041,-400.0,0.00031729,2]
[385292901,1757752245050,-400.0,0.00031729,2]
[385292902,1757752245059,-400.0,0.00031729,2]
[385292903,1757752245068,-400.0,0.00031729,2]
[385292904,1757752245077,-400.0,0.00031729,2]
[385292905,1757752245086,-641.29,0.00031729,2]
[385292906,1757752245096,-400.0,0.00031729,2]
[385292907,1757752245105,-400.0,0.00031729,2]
[385292908,1757752245115,-400.0,0.00031729,2]
[385292909,1757752245124,-400.0,0.00031729,2]
[385292910,1757752245133,-400.0,0.00031729,2]
[385292911,1757752245142,-400.0,0.00031729,2]
[385292912,1757752245152,-400.0,0.00031729,2]
[385292913,1757752245161,-400.0,0.00031729,2]
[385292914,1757752245170,-400.0,0.00031729,2]
[385292915,1757752245179,-400.0,0.00031729,2]
[385292916,1757752245189,-400.0,0.00031729,2]
[385292917,1757752245198,-400.0,0.00031729,2]
[385292918,1757752245208,-400.0,0.00031729,2]
[385292919,1757752245219,-646.81,0.00031729,2]
[385292920,1757752245228,-400.0,0.00031729,2]
[385292921,1757752245238,-400.0,0.00031729,2]
[385292922,1757752245247,-449.31370406,0.00031729,2]
[385292923,1757752245256,-400.0,0.00031729,2]
[385292924,1757752245265,-400.0,0.00031729,2]
[385292925,1757752245275,-400.0,0.00031729,2]
[385292926,1757752245284,-400.0,0.00031729,2]
[385292927,1757752245293,-400.0,0.00031729,2]
[385292928,1757752245303,-500.0,0.00031729,2]
[385292929,1757752245313,-400.0,0.00031729,2]
[385292930,1757752245323,-400.0,0.00031729,2]
[385292931,1757752245332,-400.0,0.00031729,2]
[385292932,1757752245341,-400.0,0.00031729,2]
[385292933,1757752245351,-403.0695007,0.00031729,2]
[385292934,1757752245361,-400.0,0.00031729,2]
[385292935,1757752245370,-400.0,0.00031729,2]
[385292936,1757752245379,-501.23,0.00031729,2]
[385292937,1757752245388,-400.0,0.00031729,2]
[385292938,1757752245398,-435.5,0.00031729,2]
[385292939,1757752245407,-400.0,0.00031729,2]
[385292940,1757752245417,-400.0,0.00031729,2]
[385292941,1757752245427,-403.22806178,0.00031729,2]
[385292942,1757752245436,-400.0,0.00031729,2]
[385292943,1757752245446,-400.0,0.00031729,2]
[385292944,1757752245456,-400.0,0.00031729,2]
[385292945,1757752245465,-402.3933327,0.00031729,2]
[385292946,1757752245475,-401.70074587,0.00031729,2]
[385292947,1757752245484,-400.0,0.00031729,2]
[385292948,1757752245493,-400.0,0.00031729,2]
[385292949,1757752245503,-400.0,0.00031729,2]
[385292950,1757752245512,-450.11,0.00031729,2]
[385292951,1757752245521,-400.0,0.00031729,2]
[385292952,1757752245531,-400.0,0.00031729,2]
[385292953,1757752245539,-400.0,0.00031729,2]
[385292954,1757752245548,-400.0,0.00031729,2]
[385292957,1757752245558,-400.0,0.00031729,2]
[385292959,1757752245567,-400.0,0.00031729,2]
[385292961,1757752245576,-400.0,0.00031729,2]
[385292962,1757752245585,-400.0,0.00031729,2]
[385292963,1757752245594,-400.0,0.00031729,2]
[385292964,1757752245603,-400.0,0.00031729,2]
[385292965,1757752245613,-400.0,0.00031729,2]
[385292966,1757752245622,-400.0,0.00031729,2]
[385292967,1757752245631,-400.0,0.00031729,2]
[385292968,1757752245640,-400.0,0.00031729,2]
[385292969,1757752245649,-514.35,0.00031729,2]
[385292970,1757752245659,-400.0,0.00031729,2]
[385292971,1757752245668,-400.0,0.00031729,2]
[385292972,1757752245678,-400.0,0.00031729,2]
[385292973,1757752245687,-400.0,0.00031729,2]
[385292974,1757752245696,-400.0,0.00031729,2]
[385292975,1757752245706,-401.65981033,0.00031729,2]
[385292976,1757752245718,-400.0,0.00031729,2]
[385292977,1757752245728,-583.07,0.00031729,2]
[385292978,1757752245744,-400.0,0.00031729,2]
[385292979,1757752245754,-400.0,0.00031729,2]